[Event "44th Chess Olympiad Women 2022"]
[Site "Chennai"]
[Date "2022.08.01"]
[Round "4.40"]
[White "Verbin, Valentina"]
[Black "Chung Hurtado, Yaleika"]
[Result "1-0"]
[WhiteElo "2069"]
[BlackElo "1696"]
[Annotator "NA RC"]
[PlyCount "91"]
[EventDate "2022.??.??"]
[TimeControl "60"]

1. Nf3 {[%emt 0:00:04]} Nf6 {[%emt 0:00:08]} 2. g3 {[%emt 0:00:13]} d5 {
[%emt 0:00:39]} 3. Bg2 {[%emt 0:00:24]} e6 {[%emt 0:00:09]} 4. d4 {[%emt 0:00:
00]} Be7 {[%emt 0:00:08]} 5. c4 {[%emt 0:00:31]} c6 {[%emt 0:00:34]} 6. O-O {
[%emt 0:00:59]} O-O {[%emt 0:00:13]} 7. Qc2 {[%emt 0:03:22]} dxc4 {[%emt 0:00:
00]} 8. Qxc4 {[%emt 0:03:18]} Qd5 {[%emt 0:01:56]} 9. Qc2 {[%emt 0:02:02]} Qf5
{[%emt 0:01:28]} 10. Qb3 {[%emt 0:04:15]} Na6 {[%emt 0:07:01]} 11. Nc3 {
[%emt 0:05:02]} Qa5 {[%emt 0:10:53]} 12. Bd2 {[%emt 0:07:08]} Qb6 {[%emt 0:00:
00]} 13. Qxb6 {[%emt 0:15:15]} axb6 {[%emt 0:00:22]} 14. e4 {[%emt 0:01:31]} b5
{[%emt 0:06:59]} 15. a3 {[%emt 0:00:47]} Rd8 {[%emt 0:00:35]} 16. Rfe1 {
[%emt 0:04:04]} Bf8 {[%emt 0:11:10]} 17. b4 {[%emt 0:08:22]} Nb8 {[%emt 0:00:
00]} 18. Bf4 {[%emt 0:05:45]} Re8 {[%emt 0:08:27]} 19. h3 {[%emt 0:05:48]} Nbd7
{[%emt 0:01:52]} 20. Bc7 {[%emt 0:03:15]} b6 {[%emt 0:08:32]} 21. g4 {[%emt 0:
00:00]} Ra7 {[%emt 0:01:12]} 22. Bf4 {[%emt 0:00:38]} Bb7 {[%emt 0:00:35]} 23.
Ra2 {[%emt 0:07:19]} Rea8 {[%emt 0:00:22]} 24. Rea1 {[%emt 0:00:09]} h6 {
[%emt 0:02:11]} 25. Kf1 {[%emt 0:01:40]} Ba6 {[%emt 0:05:35]} 26. Ke1 {[%emt 0:
00:00]} c5 {[%emt 0:02:49]} 27. dxc5 {[%emt 0:01:27]} bxc5 {[%emt 0:00:08]} 28.
Rb1 {[%emt 0:01:12]} cxb4 {[%emt 0:06:55]} 29. axb4 {[%emt 0:00:04]} Bb7 {
[%emt 0:00:28]} 30. Rxa7 {[%emt 0:01:28]} Rxa7 {[%emt 0:00:16]} 31. Nd4 {
[%emt 0:02:20]} e5 {[%emt 0:05:20]} 32. Ndxb5 {[%emt 0:00:17]} Ra8 {[%emt 0:00:
00]} 33. Be3 {[%emt 0:00:34]} Rc8 {[%emt 0:00:23]} 34. Nd5 {[%emt 0:04:37]} Rc4
{[%emt 0:01:31]} 35. Na3 {[%emt 0:01:13]} Bxd5 {[%emt 0:01:44]} 36. Nxc4 {
[%emt 0:00:05]} Bxc4 {[%emt 0:00:07]} 37. Kd2 {[%emt 0:00:54]} Bb5 {[%emt 0:00:
00]} 38. Kc3 {[%emt 0:00:16]} Ne8 {[%emt 0:01:05]} 39. Bf1 {[%emt 0:01:39]}
Bxf1 {[%emt 0:00:19]} 40. Rxf1 {[%emt 0:00:03]} Nc7 {[%emt 0:00:11]} 41. Kc4 {
[%emt 0:31:00]} f6 {[%emt 0:30:53]} 42. Rd1 {[%emt 0:00:00]} Nb8 {[%emt 0:00:
00]} 43. b5 {[%emt 0:00:00]} Ne6 {[%emt 0:00:00]} 44. Ba7 {[%emt 0:00:00]} Ng5
{[%emt 0:00:00]} 45. Bxb8 {[%emt 0:00:00]} Nxe4 {[%emt 0:00:00]} 46. b6 {
[%emt 0:00:00]} 1-0

[Event "44th Chess Olympiad Women 2022"]
[Site "Chennai"]
[Date "2022.08.01"]
[Round "4.41"]
[White "Al Mansouri, Moza"]
[Black "Raharimanana, Faratiana"]
[Result "1-0"]
[WhiteElo "1606"]
[BlackElo "1707"]
[Annotator "NA RC"]
[PlyCount "67"]
[EventDate "2022.??.??"]
[TimeControl "60"]

1. e4 {[%emt 0:00:08]} e5 {[%emt 0:00:04]} 2. Nf3 {[%emt 0:00:22]} Nc6 {
[%emt 0:00:24]} 3. Bb5 {[%emt 0:00:05]} Bc5 {[%emt 0:00:19]} 4. c3 {[%emt 0:00:
00]} d6 {[%emt 0:01:20]} 5. d4 {[%emt 0:00:11]} exd4 {[%emt 0:00:14]} 6. cxd4 {
[%emt 0:00:06]} Bb4+ {[%emt 0:00:06]} 7. Nc3 {[%emt 0:00:12]} Bd7 {[%emt 0:00:
00]} 8. O-O {[%emt 0:01:38]} Nge7 {[%emt 0:01:00]} 9. Qb3 {[%emt 0:14:32]} Bxc3
{[%emt 0:03:00]} 10. bxc3 {[%emt 0:00:29]} Rb8 {[%emt 0:01:23]} 11. Bd3 {
[%emt 0:04:21]} O-O {[%emt 0:03:00]} 12. Qc2 {[%emt 0:01:58]} h6 {[%emt 0:00:
00]} 13. Re1 {[%emt 0:05:16]} Bg4 {[%emt 0:06:26]} 14. Nh4 {[%emt 0:01:27]} Nc8
{[%emt 0:05:15]} 15. Nf5 {[%emt 0:01:00]} Bxf5 {[%emt 0:01:13]} 16. exf5 {
[%emt 0:00:05]} d5 {[%emt 0:01:30]} 17. Bf4 {[%emt 0:04:39]} Nd6 {[%emt 0:00:
00]} 18. Re3 {[%emt 0:03:19]} Re8 {[%emt 0:07:08]} 19. Rxe8+ {[%emt 0:04:09]}
Nxe8 {[%emt 0:03:39]} 20. g4 {[%emt 0:02:02]} Qh4 {[%emt 0:05:30]} 21. f3 {
[%emt 0:00:25]} h5 {[%emt 0:03:33]} 22. Bg3 {[%emt 0:00:42]} Qg5 {[%emt 0:00:
00]} 23. h3 {[%emt 0:03:35]} Qe3+ {[%emt 0:04:30]} 24. Kg2 {[%emt 0:00:10]}
hxg4 {[%emt 0:00:45]} 25. hxg4 {[%emt 0:00:17]} Nd6 {[%emt 0:08:00]} 26. f6 {
[%emt 0:06:23]} gxf6 {[%emt 0:03:35]} 27. Re1 {[%emt 0:04:41]} Qg5 {[%emt 0:00:
00]} 28. Rh1 {[%emt 0:00:46]} Re8 {[%emt 0:07:02]} 29. Rh5 {[%emt 0:00:26]} Qe3
{[%emt 0:01:12]} 30. Rxd5 {[%emt 0:01:43]} Qe6 {[%emt 0:06:23]} 31. Rh5 {
[%emt 0:00:40]} Ne7 {[%emt 0:05:46]} 32. Qd2 {[%emt 0:05:11]} Ng6 {[%emt 0:00:
00]} 33. Qh6 {[%emt 0:03:40]} Qxa2+ {[%emt 0:02:04]} 34. Bf2 {[%emt 0:01:05]}
1-0

[Event "44th Chess Olympiad Women 2022"]
[Site "Chennai"]
[Date "2022.08.01"]
[Round "4.41"]
[White "Rakotoniaina Tiana Johanna"]
[Black "Mariam, Essa"]
[Result "0-1"]
[WhiteElo "1529"]
[BlackElo "1591"]
[Annotator "NA RC"]
[PlyCount "86"]
[EventDate "2022.??.??"]
[TimeControl "60"]

1. g3 {[%emt 0:00:10]} c5 {[%emt 0:00:31]} 2. Bg2 {[%emt 0:00:21]} g6 {[%emt 0:
00:00]} 3. c4 {[%emt 0:01:41]} Bg7 {[%emt 0:00:14]} 4. Nc3 {[%emt 0:00:30]} Nf6
{[%emt 0:01:18]} 5. Nf3 {[%emt 0:00:18]} O-O {[%emt 0:01:43]} 6. O-O {[%emt 0:
00:00]} d6 {[%emt 0:03:30]} 7. d3 {[%emt 0:03:55]} Nc6 {[%emt 0:01:49]} 8. Bg5
{[%emt 0:00:47]} h6 {[%emt 0:01:08]} 9. Bxf6 {[%emt 0:01:31]} Bxf6 {[%emt 0:00:
00]} 10. Qd2 {[%emt 0:02:43]} Bg7 {[%emt 0:01:46]} 11. Rfd1 {[%emt 0:03:18]}
Kh7 {[%emt 0:02:17]} 12. a3 {[%emt 0:05:21]} a6 {[%emt 0:04:38]} 13. Rab1 {
[%emt 0:00:30]} Rb8 {[%emt 0:06:10]} 14. Nd5 {[%emt 0:02:48]} e6 {[%emt 0:00:
00]} 15. Nc3 {[%emt 0:03:17]} d5 {[%emt 0:03:46]} 16. cxd5 {[%emt 0:09:04]}
exd5 {[%emt 0:00:07]} 17. b4 {[%emt 0:02:47]} cxb4 {[%emt 0:01:19]} 18. axb4 {
[%emt 0:00:11]} b5 {[%emt 0:01:02]} 19. d4 {[%emt 0:01:26]} Qd6 {[%emt 0:07:18]
} 20. Na2 {[%emt 0:12:54]} Bg4 {[%emt 0:03:06]} 21. Qb2 {[%emt 0:31:41]} Bf5 {
[%emt 0:06:04]} 22. Rbc1 {[%emt 0:01:22]} Be4 {[%emt 0:00:09]} 23. Rc5 {
[%emt 0:03:42]} a5 {[%emt 0:00:40]} 24. Ne1 {[%emt 0:02:04]} Bxg2 {[%emt 0:00:
00]} 25. Nxg2 {[%emt 0:01:16]} Nxb4 {[%emt 0:00:17]} 26. Nxb4 {[%emt 0:00:33]}
Qxc5 {[%emt 0:00:05]} 27. Na6 {[%emt 0:03:27]} Qd6 {[%emt 0:01:13]} 28. Nxb8 {
[%emt 0:00:13]} Rxb8 {[%emt 0:00:07]} 29. Ra1 {[%emt 0:02:26]} Qb6 {[%emt 0:00:
00]} 30. e3 {[%emt 0:00:27]} a4 {[%emt 0:02:04]} 31. Nf4 {[%emt 0:00:26]} Qd6 {
[%emt 0:02:15]} 32. Nd3 {[%emt 0:00:46]} Bf8 {[%emt 0:04:24]} 33. Nc5 {[%emt 0:
00:00]} Qc6 {[%emt 0:01:01]} 34. Nxa4 {[%emt 0:00:39]} Ra8 {[%emt 0:00:37]} 35.
Nc3 {[%emt 0:00:45]} Rxa1+ {[%emt 0:00:16]} 36. Qxa1 {[%emt 0:00:08]} b4 {
[%emt 0:00:06]} 37. Na4 {[%emt 0:02:36]} b3 {[%emt 0:00:13]} 38. Nc3 {[%emt 0:
00:00]} Ba3 {[%emt 0:01:13]} 39. Nxd5 {[%emt 0:00:52]} b2 {[%emt 0:01:03]} 40.
Qxa3 {[%emt 0:00:36]} b1=Q+ {[%emt 0:00:11]} 41. Kg2 {[%emt 0:04:10]} Qxd5+ {
[%emt 0:00:08]} 42. Kh3 {[%emt 0:02:02]} Qf1+ {[%emt 0:00:07]} 43. Kg4 {
[%emt 0:00:14]} Qf5+ {[%emt 0:00:17]} 0-1

[Event "44th Chess Olympiad Women 2022"]
[Site "Chennai"]
[Date "2022.08.01"]
[Round "4.41"]
[White "Razafindrabiaza, Christine"]
[Black "Almaini, Aishah Sarhan"]
[Result "0-1"]
[WhiteElo "1635"]
[BlackElo "1615"]
[Annotator "NA RC"]
[PlyCount "66"]
[EventDate "2022.??.??"]
[TimeControl "60"]

1. d4 {[%emt 0:00:06]} Nf6 {[%emt 0:00:20]} 2. Nf3 {[%emt 0:00:25]} g6 {
[%emt 0:00:32]} 3. e3 {[%emt 0:00:29]} Bg7 {[%emt 0:00:08]} 4. Bd3 {[%emt 0:00:
00]} d6 {[%emt 0:01:23]} 5. h3 {[%emt 0:00:39]} O-O {[%emt 0:01:41]} 6. O-O {
[%emt 0:00:13]} Nbd7 {[%emt 0:07:46]} 7. c4 {[%emt 0:01:06]} e5 {[%emt 0:09:02]
} 8. e4 {[%emt 0:01:01]} exd4 {[%emt 0:05:54]} 9. Nxd4 {[%emt 0:00:42]} Nc5 {
[%emt 0:00:06]} 10. Nc3 {[%emt 0:02:54]} Re8 {[%emt 0:01:59]} 11. Re1 {[%emt 0:
00:00]} a5 {[%emt 0:04:08]} 12. Nf3 {[%emt 0:01:26]} Nfd7 {[%emt 0:07:58]} 13.
Nd5 {[%emt 0:04:28]} c6 {[%emt 0:02:07]} 14. Ne3 {[%emt 0:03:01]} Nxd3 {
[%emt 0:02:40]} 15. Qxd3 {[%emt 0:00:11]} Nc5 {[%emt 0:00:06]} 16. Qd1 {
[%emt 0:04:30]} Nxe4 {[%emt 0:02:39]} 17. Qc2 {[%emt 0:04:08]} Nc5 {[%emt 0:00:
00]} 18. Bd2 {[%emt 0:00:22]} Ne4 {[%emt 0:20:29]} 19. Rad1 {[%emt 0:01:28]}
Qf6 {[%emt 0:03:25]} 20. Qd3 {[%emt 0:10:15]} Qxb2 {[%emt 0:07:09]} 21. Ng4 {
[%emt 0:01:42]} Bf5 {[%emt 0:03:31]} 22. Rxe4 {[%emt 0:04:27]} Bxe4 {[%emt 0:
00:00]} 23. Qxd6 {[%emt 0:00:09]} Rad8 {[%emt 0:00:44]} 24. Qf4 {[%emt 0:04:21]
} Bxf3 {[%emt 0:01:14]} 25. gxf3 {[%emt 0:00:18]} Re2 {[%emt 0:01:55]} 26. Re1
{[%emt 0:09:02]} Qxd2 {[%emt 0:01:04]} 27. Qxd2 {[%emt 0:02:04]} Rdxd2 {
[%emt 0:00:02]} 28. Rb1 {[%emt 0:00:27]} Rxa2 {[%emt 0:00:48]} 29. Rxb7 {
[%emt 0:00:10]} h5 {[%emt 0:00:12]} 30. Ne3 {[%emt 0:02:04]} Rxf2 {[%emt 0:00:
00]} 31. Nd1 {[%emt 0:00:25]} Rfd2 {[%emt 0:00:10]} 32. Rb1 {[%emt 0:00:21]}
Bd4+ {[%emt 0:00:10]} 33. Kf1 {[%emt 0:00:17]} Rh2 {[%emt 0:00:10]} 0-1

[Event "44th Chess Olympiad Women 2022"]
[Site "Chennai"]
[Date "2022.08.01"]
[Round "4.41"]
[White "Rouda Essa, Alserkal"]
[Black "Razafindratina, Mariam Clarisse"]
[Result "1-0"]
[WhiteElo "1874"]
[BlackElo "1318"]
[Annotator "NA RC"]
[PlyCount "35"]
[EventDate "2022.??.??"]
[TimeControl "60"]

1. e4 {[%emt 0:00:04]} e5 {[%emt 0:00:44]} 2. Nf3 {[%emt 0:00:07]} Nf6 {
[%emt 0:04:46]} 3. Nxe5 {[%emt 0:00:17]} d6 {[%emt 0:05:06]} 4. Nf3 {[%emt 0:
00:00]} Nxe4 {[%emt 0:04:48]} 5. d4 {[%emt 0:00:41]} Be7 {[%emt 0:11:24]} 6.
Bd3 {[%emt 0:00:17]} Nf6 {[%emt 0:08:55]} 7. O-O {[%emt 0:00:44]} O-O {[%emt 0:
00:00]} 8. h3 {[%emt 0:01:44]} Be6 {[%emt 0:03:40]} 9. c4 {[%emt 0:03:05]} d5 {
[%emt 0:10:23]} 10. c5 {[%emt 0:00:40]} Nc6 {[%emt 0:01:28]} 11. Nc3 {[%emt 0:
00:00]} Qd7 {[%emt 0:04:58]} 12. Bb5 {[%emt 0:12:56]} a6 {[%emt 0:07:55]} 13.
Ne5 {[%emt 0:00:00]} Qe8 {[%emt 0:07:07]} 14. Ba4 {[%emt 0:01:32]} Bd7 {
[%emt 0:01:04]} 15. Nxd7 {[%emt 0:03:52]} Qxd7 {[%emt 0:05:28]} 16. a3 {
[%emt 0:01:45]} b5 {[%emt 0:03:07]} 17. Bc2 {[%emt 0:05:12]} h6 {[%emt 0:02:56]
} 18. Qd3 {[%emt 0:00:00]} 1-0

[Event "44th Chess Olympiad Women 2022"]
[Site "Chennai"]
[Date "2022.08.01"]
[Round "4.42"]
[White "Finnbogadottir, Tinna Kristin"]
[Black "Sitoe, Cheila Andre"]
[Result "0-1"]
[WhiteElo "1828"]
[BlackElo "1574"]
[Annotator "NA RC"]
[PlyCount "114"]
[EventDate "2022.??.??"]
[TimeControl "60"]

1. e4 {[%emt 1:31:00]} c5 {[%emt 1:31:00]} 2. c3 {[%emt 0:00:00]} e6 {[%emt 0:
00:00]} 3. Nf3 {[%emt 0:00:00]} Nf6 {[%emt 0:00:00]} 4. e5 {[%emt 0:00:00]} Nd5
{[%emt 0:00:00]} 5. g3 {[%emt 0:00:00]} Be7 {[%emt 0:00:00]} 6. Bg2 {[%emt 0:
00:00]} Nc6 {[%emt 0:00:00]} 7. d4 {[%emt 0:00:00]} cxd4 {[%emt 0:00:00]} 8.
cxd4 {[%emt 0:00:00]} Qb6 {[%emt 0:00:00]} 9. O-O {[%emt 0:00:00]} O-O {
[%emt 0:00:00]} 10. Nc3 {[%emt 0:00:00]} Nxc3 {[%emt 0:00:00]} 11. bxc3 {
[%emt 0:00:00]} d6 {[%emt 0:00:00]} 12. Be3 {[%emt 0:00:00]} Qa5 {[%emt 0:00:
00]} 13. exd6 {[%emt 0:00:00]} Bxd6 {[%emt 0:00:00]} 14. Qc2 {[%emt 0:00:00]}
h6 {[%emt 0:00:00]} 15. Nd2 {[%emt 0:00:00]} Qc7 {[%emt 0:00:00]} 16. Ne4 {
[%emt 0:00:00]} Be7 {[%emt 0:00:00]} 17. f4 {[%emt 0:00:00]} Bd7 {[%emt 0:00:
00]} 18. a3 {[%emt 0:00:00]} Rac8 {[%emt 0:00:00]} 19. Qe2 {[%emt 0:00:00]} b6
{[%emt 0:00:00]} 20. g4 {[%emt 0:00:00]} f5 {[%emt 0:00:00]} 21. Nf2 {[%emt 0:
00:00]} Na5 {[%emt 0:00:00]} 22. Nd1 {[%emt 0:00:00]} Nc4 {[%emt 0:00:00]} 23.
Bc1 {[%emt 0:00:00]} fxg4 {[%emt 0:00:00]} 24. Qxg4 {[%emt 0:00:00]} Rf6 {
[%emt 0:00:00]} 25. Rf3 {[%emt 0:00:00]} Bd6 {[%emt 0:00:00]} 26. Nf2 {[%emt 0:
00:00]} e5 {[%emt 0:00:00]} 27. f5 {[%emt 0:00:00]} Rcf8 {[%emt 0:00:00]} 28.
Rg3 {[%emt 0:00:00]} Bxf5 {[%emt 0:00:00]} 29. Bd5+ {[%emt 0:00:00]} Kh8 {
[%emt 0:00:00]} 30. Qe2 {[%emt 0:00:27]} exd4 {[%emt 0:00:00]} 31. Rg2 {
[%emt 0:00:45]} d3 {[%emt 0:00:00]} 32. Qh5 {[%emt 0:03:28]} d2 {[%emt 0:00:00]
} 33. Bxd2 {[%emt 0:00:41]} Nxd2 {[%emt 0:00:00]} 34. c4 {[%emt 0:03:47]} Bc5 {
[%emt 0:00:00]} 35. Re1 {[%emt 0:00:53]} Bd3 {[%emt 0:00:00]} 36. Re8 {[%emt 0:
00:00]} Bxf2+ {[%emt 0:00:00]} 37. Kh1 {[%emt 0:01:27]} Bc5 {[%emt 0:00:00]}
38. Rxf8+ {[%emt 0:00:16]} Rxf8 {[%emt 0:00:00]} 39. Rxd2 {[%emt 0:00:19]} Qf4
{[%emt 0:00:00]} 40. Qd1 {[%emt 0:01:20]} Be4+ {[%emt 0:00:00]} 41. Bxe4 {
[%emt 0:30:12]} Qxe4+ {[%emt 0:03:48]} 42. Rg2 {[%emt 0:00:06]} Rf2 {[%emt 0:
00:00]} 43. Qg1 {[%emt 0:04:25]} Qxg2+ {[%emt 0:00:38]} 44. Qxg2 {[%emt 0:00:
00]} Rxg2 {[%emt 0:00:05]} 45. Kxg2 {[%emt 0:00:10]} Bxa3 {[%emt 0:00:02]} 46.
Kf3 {[%emt 0:00:15]} Kg8 {[%emt 0:00:06]} 47. Ke4 {[%emt 0:00:06]} a5 {[%emt 0:
00:00]} 48. h4 {[%emt 0:00:19]} Bc5 {[%emt 0:00:05]} 49. Kd3 {[%emt 0:00:13]}
g5 {[%emt 0:00:11]} 50. hxg5 {[%emt 0:00:16]} hxg5 {[%emt 0:00:08]} 51. Ke2 {
[%emt 0:01:08]} a4 {[%emt 0:00:06]} 52. Kd2 {[%emt 0:00:08]} g4 {[%emt 0:00:12]
} 53. Kc2 {[%emt 0:00:05]} g3 {[%emt 0:00:05]} 54. Kb2 {[%emt 0:00:06]} g2 {
[%emt 0:00:13]} 55. Ka2 {[%emt 0:00:18]} g1=Q {[%emt 0:00:11]} 56. Kb2 {
[%emt 0:00:03]} Qf2+ {[%emt 0:01:03]} 57. Ka1 {[%emt 0:00:56]} Bd4+ {[%emt 0:
00:00]} 0-1

[Event "44th Chess Olympiad Women 2022"]
[Site "Chennai"]
[Date "2022.08.01"]
[Round "4.42"]
[White "Naira Sinoia"]
[Black "Acevedo Mendez, Lisseth"]
[Result "0-1"]
[WhiteElo "1116"]
[BlackElo "1784"]
[Annotator "NA RC"]
[PlyCount "148"]
[EventDate "2022.??.??"]
[TimeControl "60"]

1. e4 {[%emt 0:00:11]} e5 {[%emt 0:00:14]} 2. Nf3 {[%emt 0:00:10]} Nc6 {
[%emt 0:00:06]} 3. Bc4 {[%emt 0:00:18]} Bc5 {[%emt 0:00:26]} 4. d3 {[%emt 0:00:
00]} Nf6 {[%emt 0:03:28]} 5. Bg5 {[%emt 0:04:44]} h6 {[%emt 0:00:20]} 6. Bh4 {
[%emt 0:00:14]} d6 {[%emt 0:00:12]} 7. Nc3 {[%emt 0:00:16]} Be6 {[%emt 0:06:02]
} 8. Nd5 {[%emt 0:04:11]} Bxd5 {[%emt 0:06:23]} 9. Bxd5 {[%emt 0:00:19]} Qe7 {
[%emt 0:05:05]} 10. Bxc6+ {[%emt 0:01:45]} bxc6 {[%emt 0:00:04]} 11. c3 {
[%emt 0:00:45]} a5 {[%emt 0:25:37]} 12. Qa4 {[%emt 0:02:05]} Qd7 {[%emt 0:00:
00]} 13. Bxf6 {[%emt 0:01:22]} gxf6 {[%emt 0:00:05]} 14. a3 {[%emt 0:03:43]}
Rg8 {[%emt 0:03:10]} 15. g3 {[%emt 0:04:59]} Bb6 {[%emt 0:06:06]} 16. Nh4 {
[%emt 0:17:08]} d5 {[%emt 0:07:17]} 17. f3 {[%emt 0:03:19]} h5 {[%emt 0:03:17]}
18. O-O-O {[%emt 0:01:11]} Be3+ {[%emt 0:02:26]} 19. Kb1 {[%emt 0:00:53]} d4 {
[%emt 0:06:42]} 20. cxd4 {[%emt 0:00:40]} Bxd4 {[%emt 0:00:10]} 21. Nf5 {
[%emt 0:00:08]} c5 {[%emt 0:00:42]} 22. Qxd7+ {[%emt 0:02:00]} Kxd7 {[%emt 0:
00:00]} 23. Nxd4 {[%emt 0:00:56]} cxd4 {[%emt 0:01:03]} 24. Rc1 {[%emt 0:00:12]
} Kd6 {[%emt 0:01:43]} 25. Rc4 {[%emt 0:00:16]} Ra6 {[%emt 0:01:15]} 26. Rhc1 {
[%emt 0:00:38]} c6 {[%emt 0:00:04]} 27. R1c2 {[%emt 0:01:56]} Rb8 {[%emt 0:00:
00]} 28. Rc5 {[%emt 0:00:40]} Rb3 {[%emt 0:00:21]} 29. R5c4 {[%emt 0:04:03]}
Rxd3 {[%emt 0:00:17]} 30. Rf2 {[%emt 0:00:18]} Re3 {[%emt 0:00:55]} 31. Kc2 {
[%emt 0:02:00]} Rb6 {[%emt 0:00:08]} 32. h4 {[%emt 0:01:19]} Rb5 {[%emt 0:00:
00]} 33. g4 {[%emt 0:00:34]} Reb3 {[%emt 0:02:38]} 34. Kc1 {[%emt 0:01:19]} Rb8
{[%emt 0:00:52]} 35. Rfc2 {[%emt 0:03:32]} R3b6 {[%emt 0:00:11]} 36. Rc5 {
[%emt 0:03:15]} Ra6 {[%emt 0:00:24]} 37. gxh5 {[%emt 0:04:17]} Rh8 {[%emt 0:00:
00]} 38. b4 {[%emt 0:01:02]} axb4 {[%emt 0:00:38]} 39. axb4 {[%emt 0:00:22]}
Rxh5 {[%emt 0:02:48]} 40. b5 {[%emt 0:00:43]} cxb5 {[%emt 0:00:20]} 41. Rd5+ {
[%emt 0:30:30]} Ke6 {[%emt 0:36:59]} 42. Rc8 {[%emt 0:00:23]} Ra7 {[%emt 0:00:
00]} 43. Re8+ {[%emt 0:00:00]} Re7 {[%emt 0:00:00]} 44. Red8 {[%emt 0:00:00]}
Rc7+ {[%emt 0:00:00]} 45. Kd2 {[%emt 0:00:00]} Ke7 {[%emt 0:00:00]} 46. Rb8 {
[%emt 0:00:00]} Rxh4 {[%emt 0:00:00]} 47. Rbxb5 {[%emt 0:00:00]} Rh2+ {[%emt 0:
00:00]} 48. Kd1 {[%emt 0:00:00]} Rf2 {[%emt 0:00:00]} 49. Rb3 {[%emt 0:00:00]}
Rfc2 {[%emt 0:00:00]} 50. Ke1 {[%emt 0:00:00]} Ra7 {[%emt 0:00:00]} 51. Kd1 {
[%emt 0:00:00]} Rh2 {[%emt 0:00:00]} 52. Rdb5 {[%emt 0:00:00]} Ra1+ {[%emt 0:
00:00]} 53. Rb1 {[%emt 0:00:00]} Rxb1+ {[%emt 0:00:00]} 54. Rxb1 {[%emt 0:00:
00]} Rh1+ {[%emt 0:00:00]} 55. Kc2 {[%emt 0:00:00]} Rxb1 {[%emt 0:00:00]} 56.
Kxb1 {[%emt 0:00:00]} Ke6 {[%emt 0:00:00]} 57. Kc2 {[%emt 0:00:00]} f5 {
[%emt 0:00:00]} 58. Kd3 {[%emt 0:00:00]} fxe4+ {[%emt 0:00:00]} 59. fxe4 {
[%emt 0:00:00]} f5 {[%emt 0:00:00]} 60. exf5+ {[%emt 0:00:00]} Kxf5 {[%emt 0:
00:00]} 61. Ke2 {[%emt 0:00:00]} Ke4 {[%emt 0:00:00]} 62. Ke1 {[%emt 0:00:00]}
Kd3 {[%emt 0:00:00]} 63. Kd1 {[%emt 0:00:00]} e4 {[%emt 0:00:00]} 64. Ke1 {
[%emt 0:00:00]} Kc2 {[%emt 0:00:00]} 65. Ke2 {[%emt 0:00:00]} d3+ {[%emt 0:00:
00]} 66. Ke1 {[%emt 0:00:00]} d2+ {[%emt 0:00:00]} 67. Ke2 {[%emt 0:00:00]}
d1=Q+ {[%emt 0:00:06]} 68. Ke3 {[%emt 0:00:00]} Qd3+ {[%emt 0:00:00]} 69. Kf2 {
[%emt 0:00:00]} Qd2+ {[%emt 0:00:00]} 70. Kg3 {[%emt 0:00:00]} Kd3 {[%emt 0:00:
00]} 71. Kh3 {[%emt 0:00:00]} Qg5 {[%emt 0:00:00]} 72. Kh2 {[%emt 0:00:00]} Ke3
{[%emt 0:00:00]} 73. Kh1 {[%emt 0:00:00]} Kf2 {[%emt 0:00:00]} 74. Kh2 {
[%emt 0:00:00]} Qh4# {[%emt 0:00:00]} 0-1

[Event "44th Chess Olympiad Women 2022"]
[Site "Chennai"]
[Date "2022.08.01"]
[Round "4.42"]
[White "Ptacnikova, Lenka"]
[Black "Castro, Neusa Aridas De"]
[Result "1-0"]
[WhiteElo "2066"]
[BlackElo "1531"]
[Annotator "NA RC"]
[PlyCount "79"]
[EventDate "2022.??.??"]
[TimeControl "60"]

1. d4 {[%emt 0:00:01]} e6 {[%emt 0:01:13]} 2. Nf3 {[%emt 0:03:25]} d5 {[%emt 0:
00:00]} 3. g3 {[%emt 0:00:54]} c5 {[%emt 0:01:32]} 4. Bg2 {[%emt 0:00:22]} Nc6
{[%emt 0:01:36]} 5. O-O {[%emt 0:04:06]} Qb6 {[%emt 0:01:02]} 6. dxc5 {[%emt 0:
00:00]} Bxc5 {[%emt 0:00:44]} 7. Nc3 {[%emt 0:01:24]} Qc7 {[%emt 0:02:08]} 8.
Bf4 {[%emt 0:05:56]} Qa5 {[%emt 0:11:16]} 9. a3 {[%emt 0:01:47]} Be7 {[%emt 0:
00:00]} 10. e4 {[%emt 0:15:02]} dxe4 {[%emt 0:09:23]} 11. Nxe4 {[%emt 0:00:16]}
e5 {[%emt 0:06:19]} 12. Be3 {[%emt 0:07:21]} Qc7 {[%emt 0:04:02]} 13. Bc5 {
[%emt 0:02:36]} Bxc5 {[%emt 0:04:53]} 14. Nxc5 {[%emt 0:00:05]} Nge7 {[%emt 0:
00:00]} 15. Re1 {[%emt 0:03:46]} O-O {[%emt 0:00:40]} 16. c3 {[%emt 0:00:50]}
Bg4 {[%emt 0:04:53]} 17. Qa4 {[%emt 0:00:13]} Bf5 {[%emt 0:02:03]} 18. Qb5 {
[%emt 0:01:38]} Rab8 {[%emt 0:02:39]} 19. Rad1 {[%emt 0:01:17]} a6 {[%emt 0:00:
00]} 20. Qe2 {[%emt 0:00:30]} Ng6 {[%emt 0:04:36]} 21. Ng5 {[%emt 0:01:57]} Qe7
{[%emt 0:04:13]} 22. Nge4 {[%emt 0:03:50]} Bxe4 {[%emt 0:10:37]} 23. Nxe4 {
[%emt 0:00:05]} Rfd8 {[%emt 0:00:35]} 24. b4 {[%emt 0:01:20]} f5 {[%emt 0:00:
00]} 25. Nc5 {[%emt 0:01:39]} Qe8 {[%emt 0:03:40]} 26. Nxb7 {[%emt 0:04:54]}
Rxd1 {[%emt 0:01:14]} 27. Rxd1 {[%emt 0:00:08]} Rxb7 {[%emt 0:00:44]} 28. Qc4+
{[%emt 0:00:07]} Kf8 {[%emt 0:03:19]} 29. Bxc6 {[%emt 0:02:00]} Qc8 {[%emt 0:
00:00]} 30. Qxa6 {[%emt 0:03:06]} Rb8 {[%emt 0:01:23]} 31. Qa7 {[%emt 0:02:33]}
Ne7 {[%emt 0:01:25]} 32. b5 {[%emt 0:01:51]} f4 {[%emt 0:07:02]} 33. Qc5 {
[%emt 0:05:04]} Rb7 {[%emt 0:03:09]} 34. a4 {[%emt 0:07:33]} fxg3 {[%emt 0:00:
00]} 35. hxg3 {[%emt 0:00:08]} Rc7 {[%emt 0:01:34]} 36. Rd6 {[%emt 0:01:29]} e4
{[%emt 0:01:31]} 37. Qd4 {[%emt 0:01:06]} Qf5 {[%emt 0:01:23]} 38. Rd8+ {
[%emt 0:00:23]} Kf7 {[%emt 0:00:06]} 39. Be8+ {[%emt 0:00:49]} Ke6 {[%emt 0:00:
00]} 40. Qd6# {[%emt 0:00:07]} 1-0